fUSD/lending_fUSD_20250331
["ID","MTS","AMOUNT","RATE_DAILY","PERIOD"]
[356917413,1743432695892,-774.3997069,0.000509,120]
[356917414,1743432695938,-774.3997069,0.000509,120]
[356917415,1743432695983,-774.3997069,0.000509,120]
[356917416,1743432696028,-774.3997069,0.000509,120]
[356917417,1743432696074,-774.3997069,0.000509,120]
[356917418,1743432696118,-774.3997069,0.000509,120]
[356917419,1743432696162,-774.3997069,0.000509,120]
[356917420,1743432696204,-774.3997069,0.000509,120]
[356917421,1743432696247,-774.3997069,0.000509,120]
[356917422,1743432696290,-774.3997069,0.000509,120]
[356917423,1743432696334,-774.3997069,0.000509,120]
[356917424,1743432696377,-774.3997069,0.000509,120]
[356917425,1743432696419,-774.3997069,0.000509,120]
[356917426,1743432696461,-774.3997069,0.000509,120]
[356917427,1743432696503,-774.3997069,0.000509,120]
[356917428,1743432696545,-774.39,0.000509,120]
[356917429,1743432696588,-1806.93264943,0.000509,120]
[356917430,1743432696634,-1806.93264943,0.000509,120]
[356917431,1743432696676,-1806.93264943,0.000509,120]
[356917432,1743432696718,-1806.93264943,0.000509,120]
[356917433,1743432696762,-1806.93264943,0.000509,120]
[356917434,1743432696807,-1806.93264943,0.000509,120]
[356917435,1743432696852,-1806.93264943,0.000509,120]
[356917436,1743432696897,-1806.93264943,0.000509,120]
[356917437,1743432696941,-1806.93264943,0.000509,120]
[356917438,1743432696984,-1806.93264943,0.000509,120]
[356917439,1743432697030,-325.12007851,0.000509,120]
[356917440,1743432697075,-325.12007851,0.000509,120]
[356917441,1743432697119,-325.12007851,0.000509,120]
[356917442,1743432697162,-325.12007851,0.000509,120]
[356917443,1743432697205,-325.12007851,0.000509,120]
[356917444,1743432697248,-325.12007851,0.000509,120]
[356917445,1743432697292,-325.12007851,0.000509,120]
[356917446,1743432697338,-325.12007851,0.000509,120]
[356917447,1743432697383,-325.12007851,0.000509,120]
[356917448,1743432697427,-325.12007851,0.000509,120]
[356917449,1743432697469,-325.12007851,0.000509,120]
[356917450,1743432697513,-325.12007851,0.000509,120]
[356917451,1743432697557,-325.12007851,0.000509,120]
[356917452,1743432697599,-325.12007851,0.000509,120]
[356917453,1743432697643,-325.12007851,0.000509,120]
[356917454,1743432697691,-325.12007851,0.000509,120]
[356917455,1743432697734,-325.12007851,0.000509,120]
[356917456,1743432697780,-325.12007851,0.000509,120]
[356917457,1743432697823,-325.12007851,0.000509,120]
[356917458,1743432697864,-325.12,0.000509,120]
[356917459,1743432697906,-758.61351652,0.000509,120]
[356917460,1743432697947,-758.61351652,0.000509,120]
[356917461,1743432697992,-758.61351652,0.000509,120]
[356917462,1743432698038,-758.61351652,0.000509,120]
[356917463,1743432698081,-758.61351652,0.000509,120]
[356917464,1743432698123,-758.61351652,0.000509,120]
[356917465,1743432698165,-758.61351652,0.000509,120]
[356917466,1743432698209,-758.61351652,0.000509,120]
[356917467,1743432698253,-758.61351652,0.000509,120]
[356917468,1743432698300,-758.61351652,0.000509,120]
[356917469,1743432698342,-210.0,0.0005092,30]
[356917470,1743432698385,-512.16376262,0.00050958,120]
[356917471,1743432698430,-500.0,0.00050958,120]
[356917472,1743432698473,-500.0,0.00050958,120]
[356917473,1743432698520,-500.0,0.00050958,120]
[356917474,1743432698565,-453.68415865,0.00050958,120]
[356917475,1743432698698,-537.81,0.00050958,120]
[356917476,1743432698742,-500.0,0.00050958,120]
[356917477,1743432698792,-567.44,0.00050958,120]
[356917478,1743432698839,-620.53,0.00050958,120]
[356917479,1743432698884,-1313.12,0.00050958,120]
[356917480,1743432698930,-500.0,0.00050958,120]
[356917481,1743432698977,-872.99,0.00050958,120]
[356917482,1743432699022,-2706.64655213,0.00050991,120]
[356917483,1743432699066,-1000.0,0.00051,120]
[356917484,1743432699112,-1000000.0,0.00051,120]
[356917485,1743432699159,-750.389462,0.00051,120]
[356917486,1743432699206,-750.389462,0.00051,120]
[356917487,1743432699250,-185.682489,0.00051,120]
[356917488,1743432699297,-185.682489,0.00051,120]
[356917489,1743432699344,-648.913322,0.00051,120]
[356917490,1743432699392,-648.913322,0.00051,120]
[356917491,1743432699442,-312.895497,0.00051,120]
[356917492,1743432699491,-312.895497,0.00051,120]
[356917493,1743432699542,-151.0,0.00051,120]
[356917494,1743432699590,-997.64686048,0.00051042,60]
[356917495,1743432699637,-500.0,0.00051056,60]
[356917496,1743432699685,-734.94,0.000511,120]
[356917497,1743432699734,-1806.93264943,0.00051194,120]
[356917498,1743432699783,-758.61351652,0.00051194,120]
[356917499,1743432699833,-500.0,0.00051232,120]
[356917500,1743432699882,-500.0,0.00051232,120]
[356917501,1743432699932,-285.66,0.00051232,120]
[356917502,1743432699979,-537.81,0.00051232,120]
[356917503,1743432700026,-500.0,0.00051232,120]
[356917504,1743432700074,-567.44,0.00051232,120]
[356917505,1743432700123,-620.53,0.00051232,120]
[356917506,1743432700169,-1313.12,0.00051232,120]
[356917507,1743432700216,-200.24966306,0.00051232,120]
[356917508,1743432700263,-872.99,0.00051232,120]
[356917509,1743432700311,-154.39684633,0.0005124,120]
[356917510,1743432700355,-938.29186307,0.000515,30]
[356917511,1743432700402,-500.0,0.00051506,120]
[356917512,1743432700446,-500.0,0.00051506,120]
[356917513,1743432700492,-537.81,0.00051506,120]
[356917514,1743432700538,-500.0,0.00051506,120]
[356917515,1743432700580,-567.44,0.00051506,120]
[356917516,1743432700625,-620.53,0.00051506,120]
[356917517,1743432700672,-1313.12,0.00051506,120]
[356917518,1743432700718,-872.99,0.00051506,120]
[356917519,1743432700764,-158.96693485,0.00051515,60]
[356917520,1743432700811,-5000.0,0.0005152,120]
[356917521,1743432700856,-1806.93264943,0.00051606,120]
[356917522,1743432700904,-758.61351652,0.00051606,120]
[356917523,1743432700951,-500.0,0.0005178,120]
[356917524,1743432700996,-170.02851817,0.0005178,120]
[356917525,1743432701044,-537.81,0.0005178,120]
[356917526,1743432701087,-509.73801355,0.0005178,120]
[356917527,1743432701129,-567.44,0.0005178,120]
[356917528,1743432701184,-620.53,0.0005178,120]
[356917529,1743432701229,-1313.12,0.0005178,120]
[356917530,1743432701278,-872.99,0.0005178,120]
[356917531,1743432701326,-512.54,0.00051859,120]
[356917532,1743432701369,-4668.83979056,0.0005189,120]
[356917533,1743432701412,-4711.84207772,0.000519,120]
[356917534,1743432701564,-1038.0,0.000519,100]
[356917535,1743432701616,-210.0,0.0005194,30]
[356917536,1743432701661,-500.0,0.0005194,60]
[356917537,1743432701703,-252.86838501,0.0005195,119]
[356917538,1743432701745,-1920.6232771,0.00051951,119]
[356917539,1743432701790,-3658.83929623,0.00051953,119]
[356917540,1743432701831,-1048.41574488,0.00051955,119]
[356917541,1743432701871,-1048.41574488,0.00051961,119]
[356917542,1743432701912,-1171.32312023,0.00051962,119]
[356917543,1743432701957,-1920.6232771,0.00051967,119]
[356917544,1743432701999,-1920.6232771,0.00051968,119]
[356917545,1743432702041,-1171.32312023,0.00051969,119]
[356917546,1743432702082,-1048.41574488,0.00051983,119]
[356917547,1743432702126,-252.86838501,0.00051984,119]
[356917548,1743432702168,-3658.83929623,0.00051987,119]
[356917549,1743432702210,-252.86838501,0.00051992,119]
[356917550,1743432702252,-3658.83929623,0.00051993,119]
[356917551,1743432702295,-1171.32312023,0.00051999,119]
[356917552,1743432702343,-200.0,0.00051999,120]
[356917553,1743432702389,-20000.0,0.00052,120]
[356917554,1743432702431,-464.0,0.00052,120]
[356917555,1743432702476,-475679.34433332,0.00052,120]
[356917556,1743432703199,-211.863,0.000149,2]
[356917557,1743432703210,-150.0,0.00015272,2]
[356917558,1743432703219,-150.0,0.0001639,2]
[356917559,1743432703230,-150.0,0.00016843,2]
[356917560,1743432703239,-3341.14042156,0.0001981,2]
[356917561,1743432703252,-25079.90106946,0.0001981,2]
[356917562,1743432703262,-802.84381484,0.000199,2]
[356917563,1743432703272,-151.0,0.00019978,2]
[356917564,1743432703282,-46345.63399124,0.0001999,2]
[356917565,1743432703385,-6698.28513232,0.0001999,2]
[356917566,1743432703398,-4492.52990153,0.0001999,2]
[356917567,1743432703408,-1000.0,0.00019999,2]
[356917568,1743432703418,-57074.96238547,0.0002,4]
[356917569,1743432703430,-5487.13102308,0.0002,4]
[356917570,1743432703442,-701.2330322,0.0002,4]
[356917571,1743432703627,-10048.65097814,0.0002,4]
[356917572,1743432703641,-1841.0,0.0002,4]
[356917573,1743432703652,-3002.93027912,0.0002,4]
[356917574,1743432703717,-4637.44344774,0.0002,4]
[356917575,1743432703732,-40301.33144512,0.0002,4]
[356917576,1743432703742,-85320.79332812,0.0002,4]
[356917577,1743432703754,-9999.99,0.00020145,2]
[356917578,1743432703764,-150.99,0.00020145,2]
[356917579,1743432703774,-216.54,0.00020145,2]
[356917580,1743432703785,-279.83,0.00020145,2]
[356917581,1743432703795,-2287.86,0.00020145,2]
[356917582,1743432703805,-246.74,0.00020145,2]
[356917583,1743432703814,-1121.96,0.00020145,2]
[356917584,1743432703824,-999.99,0.00020145,2]
[356917585,1743432703834,-1232.09,0.00020145,2]
[356917586,1743432703844,-9999.99,0.00020145,2]
[356917587,1743432703854,-161.26831363,0.00020851,2]
[356917588,1743432703863,-250.34737557,0.00021073,2]
[356917589,1743432703873,-500.0,0.000211,2]
[356917590,1743432703883,-509.81225757,0.00021324,2]
[356917591,1743432703892,-156.587,0.00021347,2]
[356917592,1743432703902,-150.0,0.00021917,2]
[356917593,1743432703912,-162.380719,0.00022716,2]
[356917594,1743432703923,-1319.66895517,0.00023187,2]
[356917595,1743432703932,-83067.19,0.00023201,2]
[356917596,1743432703942,-150.0,0.00023287,2]
[356917597,1743432703952,-802.84381481,0.00023329,2]
[356917598,1743432703962,-2547.25,0.00023341,2]
[356917599,1743432703972,-2751.0,0.00023341,2]
[356917600,1743432703982,-2873.06,0.00023341,2]
[356917601,1743432703991,-12851.56414919,0.0002372,2]
[356917602,1743432704006,-11048.43585081,0.0002372,2]
[356917603,1743432704017,-150.33,0.00023836,2]
[356917604,1743432704026,-1963.29349993,0.00024,2]
[356917605,1743432704036,-168.3888056,0.00024085,2]
[356917606,1743432704046,-1807.87,0.00024492,2]
[356917607,1743432704056,-1807.87,0.00024498,2]
[356917608,1743432704066,-1807.87,0.00024505,2]
[356917609,1743432704075,-1807.87,0.00024511,2]
[356917610,1743432704085,-1807.87,0.00024518,2]
[356917611,1743432704095,-1807.87,0.00024524,2]
[356917612,1743432704105,-1807.87,0.00024531,2]
[356917613,1743432704115,-1807.87,0.00024537,2]
[356917614,1743432704124,-722.01730934,0.00024543,2]
[356917615,1743432704136,-1085.85269066,0.00024543,2]
[356917616,1743432704146,-1807.87,0.0002455,2]
[356917617,1743432704155,-1807.87,0.00024556,2]
[356917618,1743432704165,-1807.87,0.00024563,2]
[356917619,1743432704175,-1807.87,0.00024569,2]
[356917620,1743432704184,-1807.87,0.00024576,2]
[356917621,1743432704194,-1807.87,0.00024582,2]
[356917622,1743432704203,-1807.87,0.00024588,2]
[356917623,1743432704213,-1807.87,0.00024595,2]
[356917624,1743432704223,-300.0,0.000246,2]
[356917625,1743432704232,-1807.87,0.00024601,2]
[356917626,1743432704241,-1807.87,0.00024608,2]
[356917627,1743432704253,-1807.87,0.00024614,2]
[356917628,1743432704263,-2000.0,0.00024633,2]
[356917629,1743432704273,-150.0,0.00024657,2]
[356917630,1743432704283,-199.47659596,0.00025,2]
[356917631,1743432704294,-1599.92922319,0.00025,2]
[356917632,1743432704304,-255.78237048,0.00025,2]
[356917633,1743432704314,-202.52518666,0.00025,2]
[356917634,1743432704324,-200.0,0.00025,2]
[356917635,1743432704334,-250.0,0.00025,2]
[356917636,1743432704344,-39576.98736775,0.00025024,2]
[356917637,1743432704354,-612.95,0.0002537,2]
[356917638,1743432704364,-1000.0,0.00025421,2]
[356917639,1743432704374,-302.66,0.00025453,2]
[356917640,1743432704383,-174.61919141,0.00025454,2]
[356917641,1743432704393,-1000.0,0.00025468,2]
[356917642,1743432704404,-500.0,0.00025468,3]
[356917643,1743432704414,-250.0,0.00025514,2]
[356917644,1743432704428,-200.0,0.00025528,2]
[356917645,1743432704438,-150.0,0.00025528,2]
[356917646,1743432704448,-200.0,0.00025549,2]
[356917647,1743432704458,-150.0,0.00025642,2]
[356917648,1743432704468,-300.0,0.0002597,2]
[356917649,1743432704478,-150.0,0.00026027,2]
[356917650,1743432704488,-170.9,0.00026183,2]
[356917651,1743432704499,-1319.66895513,0.00026266,2]
[356917652,1743432704509,-5025.29,0.00026326,2]
[356917653,1743432704519,-150.0,0.00026411,7]
[356917654,1743432704529,-1000.0,0.00026579,2]
[356917655,1743432704540,-19353.0,0.00026686,2]
[356917656,1743432704550,-802.84381481,0.00026758,2]
[356917657,1743432704559,-250.0,0.00026799,2]
[356917658,1743432704569,-181.08010149,0.00026823,2]
[356917659,1743432704580,-155.45,0.00026849,2]
[356917660,1743432704589,-153.19,0.00026849,2]
[356917661,1743432704599,-302.66,0.00026867,2]
[356917662,1743432704609,-300.0,0.00027,2]
[356917663,1743432704623,-170.9,0.00027264,2]
[356917664,1743432704633,-150.0,0.00027397,2]
[356917665,1743432704643,-1162.88,0.00027397,2]
[356917666,1743432704652,-1002.321,0.0002754,16]
[356917667,1743432704663,-188.703,0.0002754,16]
[356917668,1743432704673,-187.78006525,0.00028192,2]
[356917669,1743432704683,-302.66,0.00028282,2]
[356917670,1743432704693,-170.9,0.00028344,2]
[356917671,1743432704703,-1000.0,0.00028651,2]
[356917672,1743432704714,-150.0,0.00028767,2]
[356917673,1743432704724,-1162.88,0.00028767,2]
[356917674,1743432704734,-350.0,0.00029,2]
[356917675,1743432704743,-1319.66895513,0.00029345,2]
[356917676,1743432704755,-170.9,0.00029424,2]
[356917677,1743432704764,-194.72792766,0.00029561,2]
[356917678,1743432704774,-302.66,0.00029696,2]
[356917679,1743432704784,-1430.49652446,0.0003,2]
[356917680,1743432704794,-10126.24,0.0003011,2]
[356917681,1743432704804,-150.0,0.00030136,2]
[356917682,1743432704911,-1162.88,0.00030137,2]
[356917683,1743432704923,-802.84381481,0.00030187,2]
[356917684,1743432704932,-200.0,0.00030195,2]
[356917685,1743432704944,-170.9,0.00030505,2]
[356917686,1743432704953,-201.93286099,0.0003093,2]
[356917687,1743432704963,-400.0,0.00031,2]
[356917688,1743432704972,-302.66,0.0003111,2]
[356917689,1743432704982,-150.0,0.00031506,2]
[356917690,1743432704991,-1162.88,0.00031507,2]
[356917691,1743432705002,-1000.0,0.00031835,2]
[356917692,1743432705012,-151.26,0.0003199,2]
[356917693,1743432705022,-30531.74899153,0.00032,2]
[356917694,1743432705032,-209.40437684,0.00032299,2]
[356917695,1743432705041,-682.28,0.000323,2]
[356917696,1743432705051,-682.29,0.00032333,2]
[356917697,1743432705061,-682.29,0.00032367,2]
[356917698,1743432705074,-682.29,0.000324,2]
[356917699,1743432705087,-1319.66895513,0.00032425,2]
[356917700,1743432705098,-643.220078,0.0003248,5]
[356917701,1743432705108,-500.0,0.0003248,5]
[356917702,1743432705118,-302.66,0.00032524,2]
[356917703,1743432705127,-358.80937302,0.00032558,5]
[356917704,1743432705137,-4631.91268507,0.000328,2]
[356917705,1743432705147,-213.761262,0.00032876,2]
[356917706,1743432705158,-1162.88,0.00032877,2]
[356917707,1743432705168,-329.71,0.00032877,2]
[356917708,1743432705177,-25009.36247111,0.00033,2]
[356917709,1743432705187,-450.0,0.00033,2]
[356917710,1743432705196,-159.20731047,0.00033043,5]
[356917711,1743432705206,-506.19110743,0.00033043,5]
[356917712,1743432705216,-500.0,0.0003305,5]
[356917713,1743432705226,-177.79419072,0.00033485,2]
[356917714,1743432705237,-1163.36352505,0.000335,2]
[356917715,1743432705247,-396.30714691,0.00033545,2]
[356917716,1743432705260,-151.26,0.00033548,2]
[356917717,1743432705270,-384.92343845,0.00033558,2]
[356917718,1743432705280,-16191.43144696,0.00033558,2]
[356917719,1743432705302,-340.03058738,0.00033558,2]
[356917720,1743432705318,-636.2189984,0.00033558,2]
[356917721,1743432706844,-1414.58998503,0.00033558,2]
[356917722,1743432706879,-18611.89675921,0.00033558,2]
[356917723,1743432706889,-22690.88451788,0.00033558,2]
[356917724,1743432706899,-2571.90109798,0.00033558,2]
[356917725,1743432706910,-19625.72851983,0.00033558,2]
[356917726,1743432706920,-570.53091878,0.00033558,2]
[356917727,1743432706930,-1828.85692794,0.00033558,2]
[356917728,1743432706940,-3229.13626303,0.00033558,2]
[356917729,1743432706951,-153.75842943,0.00033558,2]
[356917730,1743432706961,-174.61981759,0.00033558,2]
[356917731,1743432706971,-7055.06709751,0.00033558,2]
[356917732,1743432706980,-550.0,0.00033558,2]
[356917733,1743432706990,-1459.97923205,0.00033558,2]
[356917734,1743432707003,-1003.66639151,0.00033558,2]
[356917735,1743432707013,-799.61169013,0.00033558,2]
[356917736,1743432707024,-10658.35214085,0.00033558,2]
[356917737,1743432707035,-155992.17587556,0.00033558,2]
[356917738,1743432707045,-14886.75851187,0.00033558,2]
[356917739,1743432707055,-228.04597267,0.00033558,2]
[356917740,1743432707065,-173.06823578,0.00033558,2]
[356917741,1743432707075,-1275.60719418,0.00033558,4]
[356917742,1743432707085,-6000.0,0.00033558,2]
[356917743,1743432707095,-373.94242008,0.00033558,2]
[356917744,1743432707106,-1464.73749049,0.00033558,2]
[356917745,1743432707117,-1029.37753605,0.00033558,2]
[356917746,1743432707128,-4831.27085774,0.00033558,2]
[356917747,1743432707137,-122167.50578058,0.00033558,2]
[356917748,1743432707147,-448.34377461,0.00033558,2]
[356917749,1743432707157,-21198.50440391,0.00033558,2]
[356917750,1743432707167,-1063.45509526,0.00033558,2]
[356917751,1743432707177,-2500.0,0.00033558,2]
[356917752,1743432707186,-577.32615288,0.00033558,2]
[356917753,1743432707196,-341.04194319,0.00033558,2]
[356917754,1743432707206,-900.81513789,0.00033558,2]
[356917755,1743432707215,-479.95118732,0.00033558,2]
[356917756,1743432707226,-10762.08698138,0.00033558,2]
[356917757,1743432707236,-169.65930532,0.00033558,2]
[356917758,1743432707246,-1580.68620424,0.00033558,2]
[356917759,1743432707258,-55401.5529616,0.00033558,2]
[356917760,1743432707268,-49816.37266109,0.00033558,2]
[356917761,1743432707278,-545.71975135,0.00033558,2]
[356917762,1743432707288,-4990.1246957,0.00033558,2]
[356917763,1743432707298,-3000.0,0.00033558,2]
[356917764,1743432707309,-1007.79028829,0.00033558,2]
[356917765,1743432707319,-363.36587463,0.00033558,2]
[356917766,1743432707328,-2196.83798505,0.00033558,2]
[356917767,1743432707337,-282.57983414,0.00033558,2]
[356917768,1743432707346,-747.28311155,0.00033558,2]
[356917769,1743432707356,-14718.56448012,0.00033558,2]
[356917770,1743432707367,-1829.421984,0.00033558,2]
[356917771,1743432707377,-6732.49204155,0.00033558,4]
[356917772,1743432707387,-1113.18530459,0.00033558,2]
[356917773,1743432707398,-5166.76125098,0.00033558,4]
[356917774,1743432707408,-14008.17812875,0.00033558,2]
[356917775,1743432707418,-219.42573579,0.00033558,2]
[356917776,1743432707428,-10157.29774599,0.00033558,2]
[356917777,1743432707439,-8110.60422203,0.00033558,2]
[356917778,1743432707449,-1698.7629468,0.00033558,2]
[356917779,1743432707460,-1424.82539401,0.00033558,2]
[356917780,1743432707470,-5373.45562771,0.00033558,2]
[356917781,1743432707481,-201.90155249,0.00033558,2]
[356917782,1743432707491,-281.47768151,0.00033558,2]
[356917783,1743432707504,-5659.08437798,0.00033558,2]
[356917784,1743432707514,-1008.99019823,0.00033558,2]
[356917785,1743432707524,-748.51727105,0.00033558,2]
[356917786,1743432707534,-162.91,0.00033558,2]
[356917787,1743432707543,-1101.9044077,0.00033558,2]
[356917788,1743432707554,-161.01007565,0.00033558,2]
[356917789,1743432707564,-2163.69837641,0.00033558,2]
[356917790,1743432707574,-150.0,0.00033558,2]
[356917791,1743432707584,-303.17093269,0.00033558,2]
[356917792,1743432707594,-1138.59105083,0.00033558,5]
[356917793,1743432707605,-253.22711262,0.00033573,5]
[356917794,1743432707615,-502.65726369,0.00033573,5]
[356917795,1743432707625,-501.23696296,0.00033573,5]
[356917796,1743432707636,-240.0,0.00033585,2]
[356917797,1743432707646,-150.0,0.00033588,20]
[356917798,1743432707656,-802.84381481,0.00033616,2]
[356917799,1743432707666,-217.15233878,0.00033668,2]
[356917800,1743432707679,-302.66,0.00033938,2]
[356917801,1743432707689,-3443.69965646,0.000348,2]
[356917802,1743432707699,-1000.0,0.00034929,2]
[356917803,1743432707711,-226.57339026,0.00035,2]
[356917804,1743432707721,-500.0,0.00035,2]
[356917805,1743432707731,-1000.0,0.00035018,2]
[356917806,1743432707740,-225.18697532,0.00035037,2]
[356917807,1743432707750,-302.66,0.00035352,2]
[356917808,1743432707763,-1319.66895513,0.00035504,2]
[356917809,1743432707773,-150.0,0.00035616,2]
[356917810,1743432707783,-641.98834717,0.00036,2]
[356917811,1743432707793,-300.0,0.00036,2]
[356917812,1743432707875,-155.45,0.00036027,2]
[356917813,1743432707886,-153.19,0.00036027,2]
[356917814,1743432707896,-442.25147766,0.00036406,2]
[356917815,1743432707905,-362.59359759,0.00036598,5]
[356917816,1743432707915,-302.66,0.00036766,2]
[356917817,1743432707925,-150.0,0.000368,2]
[356917818,1743432707935,-214.68665884,0.00036839,2]
[356917819,1743432707945,-5025.29,0.00036856,2]
[356917820,1743432707955,-550.0,0.00037,2]
[356917821,1743432707966,-802.84381481,0.00037046,2]
[356917822,1743432707976,-415.13904411,0.00037959,5]
[356917823,1743432707985,-22863.0,0.00038148,2]
[356917824,1743432707995,-150.0,0.0003816,2]
[356917825,1743432708006,-302.66,0.0003818,2]
[356917826,1743432708015,-1000.0,0.00038202,2]
[356917827,1743432708025,-376.98331978,0.00038529,5]
[356917828,1743432708035,-1319.66895513,0.00038583,2]
[356917829,1743432708045,-600.0,0.00039,2]
[356917830,1743432708055,-2000.0,0.00039182,4]
[356917831,1743432708064,-1136.0,0.00039441,5]
[356917832,1743432708074,-2920.64875361,0.0004,3]
[356917833,1743432708083,-169.95,0.000401,2]
[356917834,1743432708092,-2000.0,0.00040264,8]
[356917835,1743432708103,-396.30714691,0.00040417,3]
[356917836,1743432708113,-802.84381481,0.00040475,15]
[356917837,1743432708122,-150.0,0.00040704,2]
[356917838,1743432708132,-396.30714691,0.0004089,3]
[356917839,1743432708142,-31596.53626678,0.000409,2]
[356917840,1743432708151,-2000.0,0.00041345,8]
[356917841,1743432708160,-177.79419072,0.0004149,3]
[356917842,1743432708171,-495.63933808,0.0004165,7]
[356917843,1743432708180,-1319.66895513,0.00041662,15]
[356917844,1743432708191,-151.0,0.00041807,14]
[356917845,1743432708200,-245.0,0.00041807,14]
[356917846,1743432708210,-163.969258,0.00041807,14]
[356917847,1743432708219,-153.170088,0.00041807,14]
[356917848,1743432708229,-151.0,0.00041807,14]
[356917849,1743432708239,-151.0,0.00041807,14]
[356917850,1743432708248,-152.300954,0.00041807,14]
[356917851,1743432708260,-151.0,0.00041807,14]
[356917852,1743432708270,-500.0,0.00042175,10]
[356917853,1743432708280,-154.34448,0.00042391,14]
[356917854,1743432708290,-151.0,0.00042391,14]
[356917855,1743432708300,-243.214052,0.00042391,14]
[356917856,1743432708310,-151.786908,0.00042391,14]
[356917857,1743432708320,-1579.13,0.00042391,2]
[356917858,1743432708330,-2000.0,0.00042427,8]
[356917859,1743432708340,-150.33,0.00042557,2]
[356917860,1743432708350,-150.0,0.00043249,2]
[356917861,1743432708360,-2000.0,0.00043509,8]
[356917862,1743432708370,-1123.0,0.000438,7]
[356917863,1743432708380,-396.30714691,0.00043806,3]
[356917864,1743432708390,-396.30714691,0.00043816,3]
[356917865,1743432708400,-151.0,0.00043816,14]
[356917866,1743432708409,-151.0,0.00043816,14]
[356917867,1743432708419,-151.0,0.00043816,14]
[356917868,1743432708429,-151.0,0.00043816,14]
[356917869,1743432708440,-151.0,0.00043816,14]
[356917870,1743432708449,-185.682489,0.00043816,14]
[356917871,1743432708460,-185.682489,0.00043816,14]
[356917872,1743432708470,-151.0,0.00043816,14]
[356917873,1743432708479,-151.729419,0.00043816,14]
[356917874,1743432708489,-648.913322,0.00043816,14]
[356917875,1743432708499,-151.0,0.00043816,14]
[356917876,1743432708510,-648.913322,0.00043816,14]
[356917877,1743432708521,-1188.92144073,0.00043826,3]
[356917878,1743432708530,-151.26,0.00043826,2]
[356917879,1743432708540,-2170.46,0.000439,14]
[356917880,1743432708550,-802.84381481,0.00043904,15]
[356917881,1743432708559,-151.77003,0.0004399,14]
[356917882,1743432708569,-151.0,0.0004399,14]
[356917883,1743432708578,-151.0,0.0004399,14]
[356917884,1743432708588,-152.237324,0.00044001,14]
[356917885,1743432708597,-151.0,0.00044001,14]
[356917886,1743432708609,-151.0,0.00044001,14]
[356917887,1743432708619,-750.389462,0.00044001,14]
[356917888,1743432708630,-151.0,0.00044001,14]
[356917889,1743432708640,-750.389462,0.00044001,14]
[356917890,1743432708649,-151.416823,0.00044001,14]
[356917891,1743432708658,-151.0,0.00044001,14]
[356917892,1743432708669,-151.0,0.00044001,14]
[356917893,1743432708679,-325.2421,0.00044209,10]
[356917894,1743432708688,-396.30714691,0.00044289,3]
[356917895,1743432708697,-206.175434,0.00044299,14]
[356917896,1743432708707,-153.420997,0.00044299,14]
[356917897,1743432708716,-396.30714691,0.00044299,3]
[356917898,1743432708725,-151.0,0.00044309,14]
[356917899,1743432708734,-151.530146,0.00044309,14]
[356917900,1743432708743,-151.736392,0.00044309,14]
[356917901,1743432708754,-152.856327,0.00044309,14]
[356917902,1743432708763,-152.537072,0.00044309,14]
[356917903,1743432708773,-151.0,0.00044309,14]
[356917904,1743432708783,-151.0,0.00044309,14]
[356917905,1743432708792,-151.0,0.00044309,14]
[356917906,1743432708802,-153.847183,0.00044309,14]
[356917907,1743432708811,-151.233479,0.00044309,14]
[356917908,1743432708822,-151.0,0.00044488,14]
[356917909,1743432708832,-185.682489,0.00044488,14]
[356917910,1743432708843,-185.682489,0.00044488,14]
[356917911,1743432708853,-648.913322,0.00044488,14]
[356917912,1743432708863,-151.0,0.00044488,14]